bitfinex-derivatives/quotes_ETHF0:USTF0_20250626
["timestamp","ask_amount","ask_price","bid_price","bid_amount"]
[1750925879062,0.80046,2497.3,2497.2,0.80045]
[1750925880265,0.80049,2497.2,2497.1,0.80048]
[1750925880563,5.2088,2497.4,2496.9,3.2078]
[1750925880768,0.80049,2497.2,2497.1,0.80048]
[1750925880966,0.80051,2497.1,2497.0,0.8005]
[1750925881368,5.2088,2497.4,2496.9,3.2078]
[1750925881563,0.80049,2497.2,2497.1,0.80048]
[1750925881871,0.80045,2497.3,2497.2,0.80044]
[1750925883666,0.80047,2497.2,2497.1,0.80047]
[1750925883869,0.80052,2497.0,2496.9,4.00833]
[1750925884174,0.80059,2496.8,2496.7,0.7126]
[1750925884371,0.8006,2496.8,2496.7,0.80059]
[1750925884565,3.2078,2497.0,2496.9,0.80055]
[1750925885572,0.8005,2497.1,2497.0,0.80052]
[1750925885773,0.80047,2497.2,2497.1,0.80044]
[1750925886073,1.76611941,2497.2,2497.1,0.80044]
[1750925890977,0.80049,2497.1,2497.0,1.47541]
[1750925891274,1.76613941,2497.1,2497.0,1.47541]
[1750925892278,0.80055,2497.0,2496.9,0.80053]
[1750925892480,1.76619941,2497.0,2496.9,0.80053]
[1750925893879,4.0083,2497.1,2497.0,0.80052]
[1750925894178,4.97657266,2497.1,2497.0,0.80052]
[1750925895677,4.97658266,2497.1,2496.9,0.80054]
[1750925895881,0.96827266,2497.0,2496.9,0.80054]
[1750925896082,0.80055,2496.9,2496.8,1.3858]
[1750925896278,0.96827266,2496.9,2496.8,2.18638]
[1750925896778,0.96827266,2496.9,2496.8,0.80058]
[1750925899986,3.2078,2497.1,2496.8,5.88274471]
[1750925900186,0.96995108,2497.0,2496.9,0.80055]
[1750925904181,0.96995108,2497.0,2496.7,5.89923]
[1750925904392,0.96995108,2496.9,2496.8,0.80059]
[1750925910601,1.77050108,2496.9,2496.8,0.80059]
[1750925911393,0.96995108,2496.9,2496.8,0.80059]
[1750925911796,1.77050108,2496.9,2496.8,0.80059]
[1750925911998,0.96995108,2496.9,2496.8,0.80059]
[1750925912200,1.77050108,2496.9,2496.8,0.80059]
[1750925912799,0.96995108,2496.9,2496.8,0.80059]
[1750925914204,1.77050108,2496.9,2496.8,0.80059]
[1750925914608,0.96995108,2496.9,2496.8,0.80059]
[1750925915408,1.77050108,2496.9,2496.8,0.80059]
[1750925915608,0.96995108,2496.9,2496.8,0.80059]
[1750925915803,1.77050108,2496.9,2496.8,0.80059]
[1750925916608,0.96995108,2496.9,2496.8,0.80059]
[1750925917910,3.12990108,2496.9,2496.8,0.80059]
[1750925918208,0.80059,2496.8,2496.7,0.8006]
[1750925918404,0.80068,2496.5,2496.4,3.2078]
[1750925918711,0.80078,2496.2,2496.1,0.80081]
[1750925919006,0.96899183,2496.2,2496.0,3.2078]
[1750925919201,0.6694,2496.4,2496.0,3.2078]
[1750925919202,0.80077,2496.3,2496.2,0.80078]
[1750925919409,0.6694,2496.4,2496.3,0.80075]
[1750925919709,1.63757137,2496.4,2496.3,0.80075]
[1750925920006,1.63757137,2496.4,2496.3,2.18485]
[1750925920206,0.96817137,2496.4,2496.3,2.18485]
[1750925920406,1.76889137,2496.4,2496.3,2.18485]
[1750925920713,1.76889137,2496.4,2496.1,1.51779]
[1750925920714,0.96817137,2496.4,2496.1,1.51779]
[1750925920914,0.80078,2496.2,2496.1,1.51779]
[1750925921208,0.80081,2496.1,2496.0,3.2078]
[1750925921519,2.00214,2496.0,2495.2,9.5668]
[1750925921714,0.80104,2495.4,2495.3,1.4171]
[1750925921914,0.80104,2495.4,2495.3,2.21817]
[1750925922116,0.80104,2495.4,2495.3,1.4171]
[1750925922411,3.2078,2495.9,2495.3,1.4171]
[1750925922601,0.96625994,2495.8,2495.6,0.80096]
[1750925922802,1.3809,2496.1,2495.7,2.54081471]
[1750925923020,2.18173,2496.1,2496.0,0.80084]
[1750925923319,0.96616511,2496.1,2496.0,0.80084]
[1750925923516,0.96616511,2496.1,2496.0,2.10374]
[1750925923517,1.76697511,2496.1,2496.0,2.10374]
[1750925923716,1.76697511,2496.1,2496.0,1.3029]
[1750925924207,1.76697511,2496.1,2496.0,2.10374]
[1750925924706,1.76697511,2496.1,2496.0,1.3029]
[1750925925013,0.80099,2495.6,2495.5,0.80097]
[1750925925607,0.80099,2495.6,2495.5,2.10387]
[1750925925812,0.80104,2495.4,2495.3,0.6577]
[1750925926713,0.708,2495.5,2495.1,1.45193]
[1750925926912,0.80109,2495.3,2495.1,1.45193]
[1750925927112,0.80109,2495.3,2495.2,0.8011]
[1750925927417,0.708,2495.5,2495.1,0.6508]
[1750925927418,0.8011,2495.2,2495.1,0.6508]
[1750925927612,0.80113,2495.1,2495.0,5.35575471]
[1750925927910,0.80113,2495.1,2495.0,2.0138]
[1750925928114,8.90081471,2495.1,2494.6,3.2078]
[1750925928309,6.36,2495.1,2494.6,3.2078]
[1750925928511,1.31732134,2494.9,2494.5,3.2078]
[1750925928821,1.31732134,2494.9,2494.3,1.4257]
[1750925928822,0.80135,2494.5,2494.3,1.4257]
[1750925929023,0.80127,2494.7,2494.4,0.80134]
[1750925929214,1.31732134,2494.9,2494.4,1.308]
[1750925929408,0.80126,2494.7,2494.4,5.31714]
[1750925929612,0.80125,2494.8,2494.5,0.80132]
[1750925929815,0.80117,2495.0,2494.6,0.80126]
[1750925930113,0.80117,2495.0,2494.7,2.10924]
[1750925930419,6.36,2495.1,2494.7,4.5158]
[1750925930614,6.36,2495.1,2494.8,1.308]
[1750925930814,6.36,2495.1,2494.7,3.2078]
[1750925931021,0.80123,2494.8,2494.7,3.2078]
[1750925931212,0.80129,2494.6,2494.4,4.5158]
[1750925931519,0.80132,2494.5,2494.4,3.2078]
[1750925931817,0.80132,2494.5,2494.0,25.0]
[1750925931818,0.80145,2494.1,2494.0,25.0]
[1750925932017,7.16345,2494.1,2494.0,25.0]
[1750925932223,6.362,2494.1,2494.0,25.0]
[1750925932417,7.16345,2494.1,2494.0,25.0]
[1750925933113,17.34646161,2494.1,2494.0,16.3522438]
[1750925933326,19.68327492,2494.1,2494.0,15.4797738]
[1750925933617,13.54435,2494.1,2494.0,15.4797738]
[1750925934018,38.19935,2494.1,2494.0,15.4797738]
[1750925934310,33.19935,2494.1,2494.0,15.4797738]
[1750925935013,38.19935,2494.1,2494.0,15.4797738]
[1750925935319,38.19935,2494.1,2494.0,14.5770538]
[1750925935619,39.15565023,2494.1,2494.0,13.5002838]
[1750925935822,38.19935,2494.1,2494.0,13.5002838]
[1750925936019,46.171,2494.3,2494.0,13.5002838]
[1750925936213,6.364,2494.5,2494.0,16.7080838]
[1750925936418,6.364,2494.5,2494.1,1.3725]
[1750925936919,7.16533,2494.5,2494.1,1.3725]
[1750925937317,6.364,2494.5,2494.1,1.3725]
[1750925937514,0.80145,2494.1,2494.0,13.5002838]
[1750925937720,31.86045,2494.1,2494.0,12.6012838]
[1750925938028,39.17930126,2494.1,2494.0,9.9857938]
[1750925938224,39.17874675,2494.1,2494.0,7.0940238]
[1750925938419,39.19874675,2494.1,2494.0,7.0940238]
[1750925938719,39.19874675,2494.1,2494.0,5.9799238]
[1750925938926,39.19874675,2494.1,2492.8,0.6941]
[1750925938927,38.39729675,2494.1,2492.8,0.6941]
[1750925939121,3.2078,2493.0,2492.6,4.5753]
[1750925939318,6.364,2492.9,2492.6,9.75831161]
[1750925939517,6.364,2492.9,2492.7,0.6899]
[1750925939518,0.80187,2492.8,2492.7,0.6899]
[1750925939718,0.80187,2492.8,2492.7,2.0574]
[1750925939923,6.364,2492.9,2492.7,2.0574]
[1750925940219,3.2078,2493.6,2492.8,6.55051161]
[1750925940411,0.80177,2493.1,2493.0,3.2078]
[1750925940614,0.80177,2493.1,2493.0,4.5753]
[1750925941019,0.80177,2493.1,2492.7,0.6899]
[1750925941020,0.80187,2492.8,2492.7,3.8977]
[1750925941318,0.80187,2492.8,2492.7,0.6899]
[1750925941521,6.365,2493.2,2492.7,8.8977]
[1750925941720,2.00395,2493.8,2493.1,3.2078]
[1750925941721,6.365,2493.8,2493.1,3.2078]
[1750925941921,0.80161,2493.6,2493.5,3.2078]
[1750925942721,31.147,2494.1,2493.5,8.2078]
[1750925943024,0.80158,2493.7,2493.6,1.3135]
[1750925943226,0.80158,2493.7,2493.6,0.48351]
[1750925943926,0.80181,2493.0,2492.9,3.2078]
[1750925945229,3.2078,2494.1,2492.9,14.5748]
[1750925945529,0.80168,2493.4,2493.3,3.2078]
[1750925945723,2.00381,2493.9,2493.3,3.2078]
[1750925945924,0.80168,2493.4,2493.3,3.2078]
[1750925946323,0.80168,2493.4,2493.3,8.2078]
[1750925946627,6.367,2494.2,2493.3,8.2078]
[1750925946827,0.8015,2494.0,2493.9,3.2078]
[1750925947029,0.8015,2494.0,2493.9,8.2078]
[1750925947230,2.00315,2494.7,2493.9,9.0093]
[1750925947528,0.80132,2494.5,2494.4,3.2078]
[1750925947722,0.80145,2494.1,2494.0,11.1746]
[1750925947922,0.80145,2494.1,2494.0,1.4258]
[1750925948127,0.80145,2494.1,2494.0,6.4258]
[1750925948325,0.80145,2494.1,2494.0,9.6336]
[1750925948531,0.80145,2494.1,2494.0,14.81661161]
[1750925948828,3.2078,2494.8,2494.0,9.6336]
[1750925949030,0.80137,2494.4,2494.0,4.6336]
[1750925949228,3.2078,2494.5,2494.0,4.6336]
[1750925949531,0.80144,2494.2,2494.0,3.2078]
[1750925949927,0.80142,2494.3,2494.1,1.4258]
[1750925950131,3.2078,2494.5,2494.1,1.4258]
[1750925950330,0.80142,2494.2,2494.1,1.4258]
[1750925950631,0.8014,2494.3,2494.1,1.4258]
[1750925950936,0.80136,2494.4,2494.2,0.80141]
[1750925951129,0.80129,2494.6,2494.3,2.11408]
[1750925951533,0.80133,2494.5,2494.3,2.11408]
[1750925951827,0.80135,2494.5,2494.3,1.3127]
[1750925952028,0.80135,2494.5,2494.3,2.11407]
[1750925952231,0.80136,2494.4,2494.3,1.3127]
[1750925952828,9.7478,2494.8,2494.3,1.3127]
[1750925952829,0.80134,2494.5,2494.3,1.3127]
[1750925953028,9.7478,2494.8,2494.5,0.80131]
[1750925953429,10.54905,2494.8,2494.6,1.3075]
[1750925953624,0.80135,2494.5,2494.2,0.80141]
[1750925953824,9.7478,2494.8,2494.2,0.80141]
[1750925954029,0.96251096,2494.7,2494.4,0.80135]
[1750925954331,9.7478,2494.8,2494.4,0.80135]
[1750925954530,0.96328762,2494.7,2494.6,0.80129]
[1750925954727,6.54,2495.2,2494.6,3.8832]
[1750925955032,4.17092071,2495.1,2495.0,0.80116]
[1750925955421,4.17092071,2495.1,2494.9,0.80118]
[1750925955629,4.00894,2495.1,2494.7,2.0151]
[1750925955937,3.2078,2494.8,2494.7,0.80126]
[1750925956135,9.7478,2494.8,2494.7,0.80126]
[1750925956337,6.54,2494.8,2494.7,0.80126]
[1750925956838,3.2078,2495.2,2495.1,0.80113]
[1750925957030,10.71071913,2495.2,2495.1,0.80113]
[1750925957428,0.96291913,2495.2,2495.1,0.80113]
[1750925957636,6.539,2495.4,2495.2,0.80107]
[1750925957830,0.80109,2495.3,2495.1,0.80112]
[1750925958138,3.2078,2495.2,2495.1,0.80113]
[1750925958331,3.2078,2495.5,2495.4,0.80103]
[1750925958533,9.7468,2495.9,2495.7,0.80092]
[1750925958734,9.7468,2495.9,2495.7,0.80091]
[1750925958735,0.9631007,2495.8,2495.7,0.80091]
[1750925959045,0.80096,2495.7,2495.5,0.80099]
[1750925959227,0.96300526,2495.6,2495.5,0.80099]
[1750925959531,9.7468,2495.9,2495.4,2.7802]
[1750925959721,0.80095,2495.7,2495.5,0.80099]
[1750925959926,0.9625997,2495.6,2495.5,0.80099]
[1750925960130,11.1411,2495.9,2495.4,1.3938]
[1750925960340,0.80096,2495.7,2495.4,2.19482]
[1750925960525,11.1411,2495.9,2495.4,2.19482]
[1750925960723,11.1411,2495.9,2495.4,1.3938]
[1750925960724,0.80098,2495.6,2495.4,1.3938]
[1750925961130,0.80098,2495.6,2495.4,2.19483]
[1750925961331,9.7468,2495.9,2495.5,1.4177]
[1750925961531,0.96138675,2495.8,2495.4,2.19483]
[1750925961835,0.80099,2495.6,2495.4,2.19483]
[1750925962331,0.801,2495.5,2495.4,2.19483]
[1750925963030,10.5477,2495.9,2495.7,0.80092]
[1750925963325,10.5477,2495.9,2495.4,1.3938]
[1750925963326,0.80092,2495.8,2495.6,0.80094]
[1750925963524,3.2078,2495.9,2495.5,1.3653]
[1750925963833,0.80097,2495.6,2495.5,1.3653]
[1750925964131,0.801,2495.5,2495.4,1.3938]
[1750925964632,0.801,2495.5,2494.2,9.7458]
[1750925964633,2.00262,2495.4,2494.2,9.7458]
[1750925964829,0.80127,2494.7,2494.5,2.11581]
[1750925965032,9.7458,2494.9,2494.5,1.3145]
[1750925965230,0.80138,2494.4,2494.2,9.7458]
[1750925965536,31.574,2494.9,2494.5,0.8013]
[1750925965744,0.80136,2494.4,2494.3,1.3414]
[1750925966132,0.80136,2494.4,2494.2,4.0092]
[1750925966133,0.80139,2494.3,2494.2,3.2078]
[1750925966333,6.538,2494.9,2494.2,3.2078]
[1750925966527,0.80126,2494.8,2494.5,3.2078]
[1750925966731,7.33921,2494.9,2494.7,0.80123]
[1750925967034,0.80126,2494.7,2494.6,2.84247]
[1750925967541,0.80115,2495.1,2495.0,0.80115]
[1750925967732,0.80114,2495.1,2495.0,0.80115]
[1750925968034,0.80111,2495.2,2495.1,0.80112]
[1750925968226,6.538,2495.4,2494.9,1.3414]
[1750925968436,0.80116,2495.1,2494.9,2.14258]
[1750925968633,6.538,2495.4,2494.9,1.3414]
[1750925968837,0.80109,2495.3,2494.9,1.3414]
[1750925969037,6.538,2495.4,2495.3,0.80107]
[1750925969242,0.80099,2495.6,2495.4,0.80102]
[1750925969441,10.4298,2495.7,2495.4,0.80102]
[1750925969942,0.801,2495.5,2495.4,0.80102]
[1750925970144,9.7458,2495.7,2495.4,1.3258]
[1750925970646,0.80099,2495.6,2495.4,1.3258]
[1750925970853,6.538,2495.9,2495.6,0.80095]
[1750925971052,0.80091,2495.8,2495.6,0.80096]
[1750925971344,6.538,2495.9,2495.6,0.80096]
[1750925971345,0.80094,2495.7,2495.6,0.80096]
[1750925971541,0.80094,2495.7,2495.6,2.12676]
[1750925972043,0.80097,2495.6,2495.5,3.2078]
[1750925972244,0.80097,2495.6,2495.5,4.0088]
[1750925972444,0.80095,2495.7,2495.5,3.2078]
[1750925972645,0.80095,2495.7,2495.6,0.80096]
[1750925972844,0.80097,2495.6,2495.5,4.00878]
[1750925973046,0.80096,2495.7,2495.5,4.00878]
[1750925973242,0.80097,2495.6,2495.5,4.00878]
[1750925973641,0.80097,2495.6,2495.5,4.0088]
[1750925974051,0.80097,2495.6,2495.5,3.2078]
[1750925974454,0.80103,2495.4,2495.3,0.6918]
[1750925974649,0.80103,2495.4,2495.3,1.49287]
[1750925975245,0.80103,2495.4,2495.3,0.6918]
[1750925976548,2.68669,2495.6,2495.0,8.66625]
[1750925976753,0.80113,2495.1,2495.0,1.3281]
[1750925976949,0.80113,2495.1,2495.0,2.12926]
[1750925977247,0.80112,2495.2,2495.1,0.80111]
[1750925977450,0.80113,2495.1,2495.0,2.12924]
[1750925977643,0.6842,2495.6,2495.0,1.3281]
[1750925977837,1.48518,2495.6,2495.5,0.801]
[1750925978045,0.80107,2495.3,2495.2,0.80108]
[1750925978246,3.2078,2495.7,2495.2,1.4051]
[1750925978757,0.80101,2495.5,2495.4,0.80101]
[1750925979158,3.2078,2495.7,2495.2,1.4051]
[1750925979358,0.801,2495.5,2495.4,0.801]
[1750925979954,0.80099,2495.6,2495.5,0.80098]
[1750925980251,4.00874,2495.7,2495.6,0.80097]
[1750925980451,3.2078,2495.7,2495.6,0.80097]
[1750925980846,3.2078,2495.7,2495.5,0.80097]
[1750925981049,0.80098,2495.6,2495.5,2.11957]
[1750925981648,0.80099,2495.6,2495.5,0.80098]
[1750925981854,4.00877,2495.7,2495.6,0.80097]
[1750925983551,0.80097,2495.6,2495.5,2.0349]
[1750925984056,0.80097,2495.6,2495.5,2.8359]
[1750925985252,0.80097,2495.6,2495.5,0.7163]
[1750925985555,0.80097,2495.6,2495.4,0.6787]
[1750925985556,3.2078,2495.7,2495.4,0.6787]
[1750925985755,4.00875,2495.7,2495.6,0.80097]
[1750925985962,0.80095,2495.7,2495.6,0.80097]
[1750925986457,0.95644588,2495.9,2495.6,0.80097]
[1750925986660,0.80094,2495.7,2495.6,0.80097]
[1750925986855,1.75737881,2495.7,2495.6,0.80097]
[1750925987460,0.80097,2495.6,2495.5,2.2155]
[1750925987763,1.75740881,2495.6,2495.5,0.801]
[1750925987965,2.45100881,2495.6,2495.5,0.801]
[1750925988156,1.49457,2495.6,2495.5,0.801]
[1750925988460,2.4512057,2495.6,2495.5,0.801]
[1750925989164,1.7576057,2495.6,2495.5,0.801]
[1750925989354,0.80097,2495.6,2495.5,0.801]
[1750925990160,1.7575075,2495.6,2495.5,0.801]
[1750925992859,0.9565375,2495.6,2495.5,0.801]
[1750925993063,0.80078,2496.3,2496.2,0.80075]
[1750925993264,0.80078,2496.3,2496.1,0.80078]
[1750925993265,0.80081,2496.2,2496.1,0.80078]
[1750925993471,0.80081,2496.1,2496.0,1.46133]
[1750925993772,3.2078,2496.4,2496.0,1.3468]
[1750925993961,0.95606361,2496.3,2496.2,0.80075]
[1750925994161,2.67179,2496.6,2496.1,3.2078]
[1750925994362,0.80075,2496.4,2496.3,0.80073]
[1750925994565,0.80066,2496.7,2496.6,0.80063]
[1750925994763,1.75610859,2496.7,2496.6,0.80063]
[1750925995865,1.75610859,2496.7,2496.6,0.80065]
[1750925996065,0.95544859,2496.7,2496.6,0.80065]
[1750925996372,0.6964,2497.1,2497.0,0.80052]
[1750925996864,1.62972766,2497.1,2497.0,0.80052]
[1750925997060,0.93332766,2497.1,2497.0,0.80052]
[1750925997262,1.73381766,2497.1,2497.0,0.80052]
[1750925997467,0.80055,2496.9,2496.8,3.2078]
[1750925998168,0.80065,2496.6,2496.5,3.2078]
[1750926001081,0.80071,2496.4,2496.3,0.6571]
[1750926001266,5.20943,2496.6,2495.9,3.2078]
[1750926001578,0.80084,2496.0,2495.9,3.2078]
[1750926002071,0.80084,2496.0,2495.9,5.44577]
[1750926002470,0.80084,2496.0,2495.9,4.6449]
[1750926002666,2.00179,2496.4,2495.9,4.6449]
[1750926002865,0.80077,2496.3,2496.2,4.00857]
[1750926003172,0.80075,2496.3,2496.2,4.00856]
[1750926003375,0.80078,2496.2,2496.1,0.80079]
[1750926003569,0.80078,2496.2,2496.1,2.23789]
[1750926005378,0.80078,2496.2,2496.1,1.4371]
[1750926005879,0.80081,2496.1,2496.0,0.6608]
[1750926006476,0.80081,2496.1,2496.0,1.966]
[1750926007679,0.80081,2496.1,2496.0,2.76684]
[1750926007873,0.80081,2496.1,2496.0,1.966]
[1750926008072,0.80084,2496.0,2495.9,3.2078]
[1750926008571,3.2078,2496.3,2495.9,3.2078]
[1750926008884,0.80082,2496.1,2495.9,4.00865]
[1750926009377,0.8008,2496.2,2496.1,0.80081]
[1750926010177,0.80082,2496.1,2496.0,0.80082]
[1750926010375,3.2078,2496.3,2495.9,3.2078]
[1750926010577,3.2078,2496.3,2496.2,0.80078]
[1750926011278,7.37566,2496.6,2496.5,0.80068]
[1750926011478,0.80066,2496.6,2496.5,0.80068]
[1750926011883,25.70063,2496.7,2496.6,0.80065]
[1750926013382,0.80065,2496.6,2496.5,1.51476]
[1750926014474,0.80065,2496.6,2496.5,0.7141]
[1750926015179,7.00169,2496.6,2495.9,3.2078]
[1750926015374,0.80113,2495.1,2495.0,3.2078]
[1750926015578,60.64913529,2495.1,2493.2,3.18726885]
[1750926015780,5.17897175,2493.4,2493.3,2.22011]
[1750926016079,3.2078,2494.1,2493.3,4.6262]
[1750926016671,1.4233,2494.7,2493.6,3.2078]
[1750926016672,3.2078,2494.4,2493.6,3.2078]
[1750926016885,3.2078,2495.1,2494.3,3.2078]
[1750926017179,3.2078,2495.1,2494.2,5.65596593]
[1750926017180,3.2078,2495.1,2494.5,3.2078]
[1750926017373,3.2078,2495.1,2494.6,1.381]
[1750926017374,0.80125,2494.8,2494.6,1.381]
[1750926019174,3.2078,2495.1,2494.6,6.381]
[1750926019380,3.2078,2495.9,2494.8,3.2078]
[1750926019570,2.00228,2495.8,2494.9,6.894]
[1750926019778,0.80112,2495.2,2495.0,0.6495]
[1750926019980,0.80112,2495.2,2495.1,2.0921]
[1750926020381,0.80112,2495.2,2495.1,7.0921]
[1750926020570,0.80112,2495.2,2495.1,2.0921]
[1750926020778,3.2078,2495.3,2494.5,3.2078]
[1750926020972,0.80126,2494.7,2494.6,9.044]
[1750926021176,0.80126,2494.7,2494.6,2.15]
[1750926022880,0.80136,2494.4,2494.3,0.6865]
[1750926023495,0.80145,2494.1,2494.0,2.1477]
[1750926023683,0.80145,2494.1,2494.0,7.8268]
[1750926023887,0.80145,2494.1,2494.0,2.8268]
[1750926026088,0.80145,2494.1,2494.0,7.8268]
[1750926027690,0.80145,2494.1,2494.0,2.8268]
[1750926028580,3.2078,2495.3,2494.0,23.58656593]
[1750926028784,2.00315,2494.8,2494.4,3.2078]
[1750926028985,0.80145,2494.1,2494.0,10.7829]
[1750926029385,0.80145,2494.1,2494.0,15.7829]
[1750926029789,0.80145,2494.1,2494.0,8.8869]
[1750926029990,0.80145,2494.1,2494.0,15.7829]
[1750926030183,0.80145,2494.1,2494.0,3.8869]
[1750926030384,3.2078,2494.3,2493.6,6.896]
[1750926030586,0.80158,2493.7,2493.6,6.896]
[1750926030890,0.80164,2493.5,2493.4,6.896]
[1750926031276,0.80171,2493.3,2493.2,3.2078]
[1750926031481,0.80181,2493.0,2492.9,3.2078]
[1750926032086,0.8019,2492.7,2492.6,18.73083713]
[1750926032290,0.8019,2492.7,2492.6,6.896]
[1750926034298,0.8019,2492.8,2492.6,11.896]
[1750926034596,0.80182,2493.0,2492.8,0.80186]
[1750926034892,0.80182,2493.0,2492.9,3.2078]
[1750926035401,0.80182,2493.0,2492.9,8.2078]
[1750926035588,0.80182,2493.0,2492.9,3.2078]
[1750926035992,0.80197,2492.5,2492.4,0.7129]
[1750926036287,0.80197,2492.5,2492.4,7.6109]
[1750926036489,0.80197,2492.5,2492.4,13.4129]
[1750926036893,2.00464,2492.9,2492.4,13.4129]
[1750926036894,0.80195,2492.6,2492.4,13.4129]
[1750926037196,0.80197,2492.5,2492.4,0.7129]
[1750926037497,0.80197,2492.5,2492.4,8.4129]
[1750926037692,3.2078,2493.0,2492.5,0.80197]
[1750926037894,0.80188,2492.8,2492.6,3.2078]
[1750926038087,2.00445,2493.1,2492.6,3.2078]
[1750926038289,2.00445,2493.1,2492.6,4.00973]
[1750926038492,2.00441,2493.2,2492.6,3.2078]
[1750926038691,0.80188,2492.8,2492.7,0.80189]
[1750926038896,0.80186,2492.9,2492.7,0.80189]
[1750926039093,0.80187,2492.8,2492.7,0.80189]
[1750926039495,0.8019,2492.7,2492.6,3.2078]
[1750926039989,0.80197,2492.5,2492.4,7.6109]
[1750926040799,0.80197,2492.5,2492.4,7.6119]
[1750926042400,0.80196,2492.6,2492.4,7.6119]
[1750926042597,0.80197,2492.5,2492.4,8.41388]
[1750926043000,0.80197,2492.5,2492.4,9.82638]
[1750926043493,0.80196,2492.6,2492.5,0.80196]
[1750926043690,0.80196,2492.6,2492.5,1.4125]
[1750926044295,5.21227,2493.1,2492.5,1.4125]
[1750926044503,0.80189,2492.8,2492.7,0.80189]
[1750926044695,0.80189,2492.8,2492.7,1.3706]
[1750926045097,0.80189,2492.8,2492.7,2.1725]
[1750926045806,0.80189,2492.8,2492.7,0.6921]
[1750926046395,0.80183,2493.0,2492.7,2.0627]
[1750926046598,0.80184,2492.9,2492.8,0.80184]
[1750926046787,0.80184,2492.9,2492.8,2.17244]
[1750926047606,6.62707,2493.5,2492.8,1.3706]
[1750926047902,0.80182,2493.0,2492.9,0.80181]
[1750926048106,0.80182,2493.0,2492.9,2.20791]
[1750926048293,0.80187,2492.8,2492.7,0.6921]
[1750926048601,0.80187,2492.8,2492.7,8.417]
[1750926048906,0.80185,2492.9,2492.8,0.80187]
[1750926049202,0.80178,2493.1,2493.0,0.80178]
[1750926049788,0.80178,2493.1,2493.0,2.20788]
[1750926049996,0.80173,2493.3,2493.0,2.20788]
[1750926050196,0.80173,2493.3,2493.1,0.80177]
[1750926050397,0.80174,2493.2,2493.1,0.80177]
[1750926050599,0.80182,2493.0,2492.7,7.6151]
[1750926050800,0.80182,2493.0,2492.8,0.80186]
[1750926051702,0.8018,2493.1,2492.9,0.80184]
[1750926052297,0.80181,2493.0,2492.8,0.80185]
[1750926053196,0.80187,2492.8,2492.7,7.6151]
[1750926053409,6.58111,2492.9,2492.4,1.6485]
[1750926053612,0.80192,2492.7,2492.4,9.37347]
[1750926053810,0.80192,2492.7,2492.5,0.80196]
[1750926054504,1.50079,2492.8,2492.6,0.80192]
[1750926054709,1.50077,2492.8,2492.4,9.9741]
[1750926054902,0.6989,2492.8,2492.7,0.8019]
[1750926059409,1.72955129,2492.8,2492.7,0.8019]
[1750926060302,1.72955129,2492.8,2492.4,15.1869]
[1750926060303,3.73424129,2492.8,2492.4,1.6485]
[1750926060507,4.23845129,2492.7,2492.4,3.004]
[1750926060715,3.2078,2492.7,2492.6,0.80193]
[1750926060904,4.23937816,2492.7,2492.6,0.80193]
[1750926061104,4.23937816,2492.7,2492.5,0.80195]
[1750926061301,1.03157816,2492.6,2492.5,0.80195]
[1750926062504,1.83350816,2492.6,2492.5,0.80195]
[1750926062712,1.03157816,2492.6,2492.5,0.80195]
[1750926063116,0.80197,2492.5,2492.4,0.999]
[1750926063414,0.80197,2492.5,2492.4,1.80098]
[1750926063415,2.46857816,2492.5,2492.4,1.80098]
[1750926063607,3.27054816,2492.5,2492.4,1.80098]
[1750926063819,3.27054816,2492.5,2492.4,0.999]
[1750926064815,8.46250026,2492.5,2492.4,0.47742128]
[1750926066311,7.66053026,2492.5,2492.4,0.47742128]
[1750926066520,2.46857816,2492.5,2492.4,1.27942128]
[1750926066716,9.39257816,2492.5,2492.4,1.27942128]
[1750926067018,2.46857816,2492.5,2492.4,1.27942128]
[1750926067221,3.27054816,2492.5,2492.4,1.27942128]
[1750926067420,3.27054816,2492.5,2492.4,0.47742128]
[1750926067613,2.46857816,2492.5,2492.4,1.27942128]
[1750926067813,8.16e-06,2492.5,2492.4,13.68042128]
[1750926068118,0.6842,2493.2,2493.1,0.80177]
[1750926068515,3.2078,2493.3,2493.2,0.80174]
[1750926069512,3.2078,2493.3,2492.9,2.66707]
[1750926069513,3.2078,2493.3,2492.9,0.6625]
[1750926069713,3.2078,2493.3,2492.8,2.00468]
[1750926069917,1.3231,2493.2,2493.1,0.80177]
[1750926070324,1.3231,2493.2,2492.8,2.00467]
[1750926070527,1.3231,2493.2,2493.1,0.80177]
[1750926071521,1.3231,2493.2,2492.6,3.2078]
[1750926071733,3.2078,2493.0,2492.9,0.80181]
[1750926072145,3.9066,2493.0,2492.9,0.80181]
[1750926072431,5.2529,2493.0,2492.5,2.66242]
[1750926072633,5.2529,2493.0,2492.9,0.80184]
[1750926073434,5.2529,2493.0,2492.8,0.80186]
[1750926073629,6.05473,2493.0,2492.5,0.6575]
[1750926073831,6.05473,2493.0,2492.7,0.8019]
[1750926073832,6.05472,2493.0,2492.7,0.8019]
[1750926074236,6.05472,2493.0,2492.6,0.80192]
[1750926074434,3.2078,2492.7,2492.6,0.80192]
[1750926074934,4.00971,2492.7,2492.4,1.75640128]
[1750926075127,1.8964,2492.6,2492.4,0.95442128]
[1750926075328,2.69836,2492.6,2492.4,0.95442128]
[1750926075527,0.80197,2492.5,2492.4,0.95442128]
[1750926075833,1.3709,2492.5,2492.4,0.95442128]
[1750926076034,2.17287,2492.5,2492.4,0.95442128]
[1750926076427,1.3709,2492.5,2492.4,0.95442128]
[1750926076623,2.17287,2492.5,2492.4,0.95442128]